[Event "Swedish Chess Championship 2019: Minior-SM"]
[Site "Stiga Sports Arena, Arenatorget 1, Eskilstuna, Sweden, Sweden"]
[Date "2019.07.11"]
[Round "5.4"]
[White "Seo, Jung Hyun"]
[Black "Sandberg, Simon"]
[Result "1-0"]
[TimeControl "90 minutes for 40 moves + 30 minutes for the rest of the game + 30 seconds per move from move one"]
[WhiteFideId "1735667"]
[BlackFideId "1735640"]
[WhiteElo "1575"]
[BlackElo "1421"]

1. e4 {[%clk 01:31:00]} {[%emt 00:15:34]} e5 {[%clk 01:25:06]} {[%emt
00:05:54]} 2. Nf3 {[%clk 01:31:27]} {[%emt 00:00:03]} Nc6 {[%clk 01:25:27]}
{[%emt 00:00:09]} 3. d4 {[%clk 01:31:55]} {[%emt 00:00:02]} exd4 {[%clk
01:25:48]} 4. Nxd4 {[%clk 01:32:22]} {[%emt 00:00:11]} Bc5 5. Nxc6 Qf6 {[%clk
01:26:37]} {[%emt 00:00:02]} 6. Qf3 {[%clk 01:33:44]} {[%emt 00:00:22]} Qxf3
{[%clk 01:26:24]} 7. gxf3 {[%clk 01:34:10]} dxc6 {[%emt 00:00:30]} 8. Be3
{[%emt 00:01:08]} Bxe3 {[%emt 00:00:04]} 9. fxe3 {[%emt 00:00:54]} Ne7 {[%clk
01:25:15]} {[%emt 00:00:02]} 10. Nc3 {[%emt 00:00:47]} Be6 {[%clk 01:24:52]}
{[%emt 00:00:10]} 11. O-O-O {[%emt 00:07:22]} O-O {[%emt 00:00:29]} 12. Bd3
{[%emt 00:00:18]} Rad8 {[%emt 00:00:22]} 13. Rhg1 {[%clk 01:35:32]} {[%emt
00:00:05]} Kh8 {[%clk 01:18:24]} {[%emt 00:00:22]} 14. a3 {[%emt 00:03:09]} f5
{[%clk 01:15:19]} {[%emt 00:00:58]} 15. exf5 {[%clk 01:32:07]} {[%emt
00:03:53]} Nxf5 {[%clk 01:12:15]} {[%emt 00:03:34]} 16. Bxf5 {[%clk 01:32:06]}
{[%emt 00:00:31]} Bxf5 {[%clk 01:11:11]} {[%emt 00:01:34]} 17. Rxd8 {[%clk
01:32:24]} {[%emt 00:00:11]} Rxd8 {[%clk 01:11:01]} {[%emt 00:00:40]} 18. e4
{[%clk 01:30:22]} {[%emt 00:02:32]} Be6 {[%clk 01:09:45]} {[%emt 00:01:47]} 19.
Ne2 {[%clk 01:29:06]} {[%emt 00:01:46]} Rf8 {[%clk 01:09:54]} {[%emt 00:00:21]}
20. Nd4 {[%clk 01:28:21]} {[%emt 00:01:15]} Bd7 {[%clk 01:08:21]} {[%emt
00:02:04]} 21. Rg3 {[%clk 01:28:35]} {[%emt 00:00:16]} h6 {[%clk 01:07:42]}
{[%emt 00:01:09]} 22. Kd2 {[%clk 01:28:52]} {[%emt 00:00:13]} c5 {[%clk
01:07:26]} {[%emt 00:00:46]} 23. Ne2 {[%clk 01:28:02]} {[%emt 00:01:19]} Rd8
{[%clk 01:06:28]} {[%emt 00:01:29]} 24. Ke3 {[%clk 01:24:35]} {[%emt 00:03:57]}
g5 {[%clk 00:50:02]} {[%emt 00:16:56]} 25. Nc3 {[%clk 01:24:16]} {[%emt
00:00:49]} Bc6 {[%clk 00:49:50]} {[%emt 00:00:42]} 26. Rg1 {[%clk 01:23:04]}
{[%emt 00:01:41]} b6 {[%clk 00:47:05]} {[%emt 00:03:16]} 27. f4 {[%clk
01:20:10]} {[%emt 00:03:24]} gxf4+ {[%clk 00:46:20]} {[%emt 00:01:16]} 28. Kxf4
{[%clk 01:20:33]} {[%emt 00:00:07]} Rg8 {[%clk 00:38:52]} {[%emt 00:07:59]} 29.
Rxg8+ {[%clk 01:20:39]} {[%emt 00:00:24]} Kxg8 {[%clk 00:39:16]} {[%emt
00:00:06]} 30. Kf5 {[%clk 01:21:02]} {[%emt 00:00:06]} Kf7 {[%clk 00:39:20]}
{[%emt 00:00:26]} 31. h4 {[%clk 01:20:46]} {[%emt 00:00:46]} Bd7+ {[%clk
00:37:59]} {[%emt 00:01:51]} 32. Ke5 {[%clk 01:19:29]} {[%emt 00:01:47]} Kg6
{[%clk 00:34:41]} {[%emt 00:03:49]} 33. Nd5 {[%clk 01:19:53]} {[%emt 00:00:06]}
Kh5 {[%clk 00:32:56]} {[%emt 00:02:14]} 34. Nf6 {[%clk 01:20:05]} {[%emt
00:00:18]} Kxh4 {[%clk 00:33:00]} {[%emt 00:00:25]} 35. Nxd7 {[%clk 01:20:33]}
{[%emt 00:00:04]} a5 {[%clk 00:33:10]} {[%emt 00:00:20]} 36. Kf5 {[%clk
01:20:51]} {[%emt 00:00:11]} h5 {[%clk 00:33:17]} {[%emt 00:00:24]} 37. Nf6
{[%clk 01:21:15]} {[%emt 00:00:06]} b5 {[%clk 00:33:28]} {[%emt 00:00:19]} 38.
e5 {[%clk 01:21:42]} {[%emt 00:00:03]} b4 {[%clk 00:33:45]} {[%emt 00:00:14]}
39. e6 {[%clk 01:22:09]} {[%emt 00:00:02]} bxa3 {[%clk 00:34:10]} {[%emt
00:00:05]} 40. bxa3 {[%clk 01:22:35]} {[%emt 00:00:05]} 1-0

[Event "Swedish Chess Championship 2019: Minior-SM"]
[Site "Stiga Sports Arena, Arenatorget 1, Eskilstuna, Sweden, Sweden"]
[Date "2019.07.11"]
[Round "5.5"]
[White "Wikman, Viktor"]
[Black "Fridman, Arvid"]
[Result "1-0"]
[TimeControl "90 minutes for 40 moves + 30 minutes for the rest of the game + 30 seconds per move from move one"]
[WhiteFideId "1744720"]
[BlackFideId "1758632"]
[WhiteElo "1633"]
[BlackElo "1326"]

1. e4 {[%clk 01:26:30]} {[%emt 00:04:28]} e5 {[%clk 01:30:46]} {[%emt
00:00:14]} 2. Nf3 {[%clk 01:26:18]} {[%emt 00:00:42]} Nc6 {[%clk 01:31:07]}
{[%emt 00:00:10]} 3. Bc4 {[%clk 01:25:53]} {[%emt 00:00:54]} Bc5 {[%clk
01:31:05]} {[%emt 00:00:32]} 4. c3 {[%clk 01:25:30]} {[%emt 00:00:52]} Nf6
{[%clk 01:31:18]} {[%emt 00:00:18]} 5. d3 {[%clk 01:25:26]} {[%emt 00:00:33]}
O-O {[%clk 01:30:47]} {[%emt 00:01:01]} 6. Bg5 {[%clk 01:23:40]} {[%emt
00:02:15]} d6 {[%clk 01:30:21]} {[%emt 00:00:58]} 7. a4 {[%clk 01:22:30]}
{[%emt 00:01:40]} a5 {[%clk 01:27:24]} {[%emt 00:03:26]} 8. O-O {[%clk
01:21:32]} {[%emt 00:01:28]} Bg4 {[%clk 01:25:11]} {[%emt 00:02:44]} 9. Nbd2
{[%clk 01:19:42]} {[%emt 00:02:20]} h6 {[%clk 01:21:05]} {[%emt 00:04:37]} 10.
Be3 {[%clk 01:11:31]} {[%emt 00:08:40]} Nh5 {[%clk 01:18:30]} {[%emt 00:03:05]}
11. h3 {[%clk 01:05:30]} {[%emt 00:06:31]} Ng3 {[%clk 01:11:42]} {[%emt
00:07:19]} 12. Re1 {[%clk 01:03:17]} {[%emt 00:02:43]} Bxf3 {[%clk 00:55:16]}
{[%emt 00:16:56]} 13. Qxf3 {[%clk 00:59:45]} {[%emt 00:04:00]} Bxe3 {[%clk
00:54:54]} {[%emt 00:00:50]} 14. Rxe3 {[%clk 00:58:01]} {[%emt 00:02:16]} Nxe4
{[%clk 00:52:11]} {[%emt 00:03:14]} 15. Nxe4 {[%clk 00:57:43]} {[%emt
00:00:49]} d5 {[%clk 00:48:37]} {[%emt 00:04:04]} 16. Bxd5 {[%clk 00:58:03]}
{[%emt 00:00:10]} 1-0

[Event "Swedish Chess Championship 2019: Minior-SM"]
[Site "Stiga Sports Arena, Arenatorget 1, Eskilstuna, Sweden, Sweden"]
[Date "2019.07.11"]
[Round "5.6"]
[White "Lindholm, Marcus"]
[Black "Anfalt, Erik"]
[Result "0-1"]
[TimeControl "90 minutes for 40 moves + 30 minutes for the rest of the game + 30 seconds per move from move one"]
[WhiteFideId "1743473"]
[BlackFideId "1753533"]
[WhiteElo "1359"]
[BlackElo "1511"]

1. e4 {[%clk 01:30:57]} {[%emt 00:00:02]} e5 {[%clk 01:30:54]} {[%emt
00:00:07]} 2. Nf3 {[%clk 01:31:20]} {[%emt 00:00:07]} Nc6 {[%clk 01:31:22]}
{[%emt 00:00:02]} 3. Bc4 {[%clk 01:31:37]} {[%emt 00:00:13]} Bc5 {[%clk
01:31:36]} {[%emt 00:00:15]} 4. b4 {[%clk 01:31:53]} {[%emt 00:00:15]} Bxb4
{[%clk 01:32:02]} {[%emt 00:00:04]} 5. c3 {[%clk 01:32:16]} {[%emt 00:00:07]}
Ba5 {[%clk 01:32:31]} {[%emt 00:00:02]} 6. d4 {[%clk 01:32:31]} {[%emt
00:00:15]} exd4 {[%clk 01:32:19]} {[%emt 00:00:41]} 7. Nxd4 {[%clk 01:32:47]}
{[%emt 00:00:14]} d6 {[%clk 01:25:08]} {[%emt 00:07:41]} 8. Nxc6 {[%clk
01:31:06]} {[%emt 00:02:11]} bxc6 {[%clk 01:25:13]} {[%emt 00:00:25]} 9. Qa4
{[%clk 01:28:38]} {[%emt 00:02:58]} Bb6 {[%clk 01:19:47]} {[%emt 00:05:57]} 10.
Qxc6+ {[%clk 01:27:47]} {[%emt 00:01:21]} Bd7 {[%clk 01:20:12]} {[%emt
00:00:05]} 11. Qd5 {[%clk 01:25:25]} {[%emt 00:02:52]} Be6 {[%clk 01:20:26]}
{[%emt 00:00:16]} 12. Qd3 {[%clk 01:24:34]} {[%emt 00:01:22]} Bxc4 {[%clk
01:18:15]} {[%emt 00:02:41]} 13. Qxc4 {[%clk 01:24:55]} {[%emt 00:00:09]} Nf6
{[%clk 01:18:21]} {[%emt 00:00:24]} 14. Bg5 {[%clk 01:20:56]} {[%emt 00:04:28]}
O-O {[%clk 01:17:11]} {[%emt 00:01:40]} 15. O-O {[%clk 01:19:59]} {[%emt
00:01:27]} h6 {[%clk 01:17:25]} {[%emt 00:00:16]} 16. Bh4 {[%clk 01:19:32]}
{[%emt 00:00:57]} Re8 {[%clk 01:15:46]} {[%emt 00:02:09]} 17. Nd2 {[%clk
01:18:49]} {[%emt 00:01:14]} Re6 {[%clk 00:59:13]} {[%emt 00:17:02]} 18. Rfe1
{[%clk 01:13:26]} {[%emt 00:05:52]} Qe8 {[%clk 00:57:59]} {[%emt 00:01:44]} 19.
Kf1 {[%clk 01:11:53]} {[%emt 00:02:04]} Ng4 {[%clk 00:37:12]} {[%emt 00:21:17]}
20. Bg3 {[%clk 01:05:53]} {[%emt 00:06:30]} Ne5 {[%clk 00:37:18]} {[%emt
00:00:24]} 21. Bxe5 {[%clk 01:05:41]} {[%emt 00:00:42]} Rxe5 {[%clk 00:37:44]}
{[%emt 00:00:04]} 22. Re2 {[%clk 00:59:41]} {[%emt 00:06:30]} Qe6 {[%clk
00:34:30]} {[%emt 00:03:44]} 23. Qxe6 {[%clk 00:55:16]} {[%emt 00:04:56]} fxe6
{[%clk 00:34:59]} {[%emt 00:00:01]} 24. Nf3 {[%clk 00:54:51]} {[%emt 00:00:54]}
Rc5 {[%clk 00:34:18]} {[%emt 00:01:11]} 25. Rc1 {[%clk 00:51:42]} {[%emt
00:03:39]} e5 {[%clk 00:34:05]} {[%emt 00:00:43]} 26. Nh4 {[%clk 00:47:24]}
{[%emt 00:04:48]} Rc4 {[%clk 00:30:49]} {[%emt 00:03:47]} 27. Nf5 {[%clk
00:43:11]} {[%emt 00:04:42]} Re8 {[%clk 00:31:15]} {[%emt 00:00:03]} 28. f3
{[%clk 00:42:55]} {[%emt 00:00:46]} Kh7 {[%clk 00:29:12]} {[%emt 00:02:33]} 29.
Rb2 {[%clk 00:36:38]} {[%emt 00:06:47]} g6 {[%clk 00:28:51]} {[%emt 00:00:51]}
30. Ng3 {[%clk 00:36:28]} {[%emt 00:00:39]} c6 {[%clk 00:25:00]} {[%emt
00:04:21]} 31. Rd2 {[%clk 00:28:56]} {[%emt 00:08:02]} Be3 {[%clk 00:24:25]}
{[%emt 00:01:06]} 0-1

[Event "Swedish Chess Championship 2019: Minior-SM"]
[Site "Stiga Sports Arena, Arenatorget 1, Eskilstuna, Sweden, Sweden"]
[Date "2019.07.12"]
[Round "6.1"]
[White "Falkevall, Axel"]
[Black "Strom-Engdahl, Alexander"]
[Result "1-0"]
[TimeControl "90 minutes for 40 moves + 30 minutes for the rest of the game + 30 seconds per move from move one"]
[WhiteFideId "1735560"]
[BlackFideId "1741586"]
[WhiteElo "2067"]
[BlackElo "1866"]

1. d4 {[%clk 01:30:58]} {[%emt 00:00:01]} Nf6 {[%clk 01:29:02]} {[%emt
00:01:58]} 2. Bg5 {[%clk 01:31:20]} {[%emt 00:00:08]} e6 {[%clk 01:27:36]}
{[%emt 00:01:55]} 3. e4 {[%clk 01:31:34]} {[%emt 00:00:17]} h6 {[%clk
01:27:12]} {[%emt 00:00:54]} 4. Bxf6 {[%clk 01:31:43]} {[%emt 00:00:20]} Qxf6
{[%clk 01:27:34]} {[%emt 00:00:08]} 5. c3 {[%clk 01:29:43]} {[%emt 00:02:30]}
d6 {[%clk 01:19:39]} {[%emt 00:08:25]} 6. Nf3 {[%clk 01:22:24]} {[%emt
00:07:49]} e5 {[%clk 01:18:50]} {[%emt 00:01:18]} 7. Bc4 {[%clk 01:17:23]}
{[%emt 00:05:31]} c6 {[%clk 01:06:05]} {[%emt 00:13:16]} 8. Nbd2 {[%clk
01:12:13]} {[%emt 00:05:40]} Be7 {[%clk 00:59:16]} {[%emt 00:07:19]} 9. Qe2
{[%clk 01:07:21]} {[%emt 00:05:20]} Bg4 {[%clk 00:55:14]} {[%emt 00:04:33]} 10.
h3 {[%clk 01:04:09]} {[%emt 00:03:42]} Bxf3 {[%clk 00:50:24]} {[%emt 00:05:21]}
11. Nxf3 {[%clk 01:03:59]} {[%emt 00:00:40]} Nd7 {[%clk 00:50:30]} {[%emt
00:00:25]} 12. Bb3 {[%clk 00:57:25]} {[%emt 00:07:04]} O-O {[%clk 00:47:04]}
{[%emt 00:03:55]} 13. O-O {[%clk 00:45:10]} {[%emt 00:12:45]} Rfe8 {[%clk
00:42:54]} {[%emt 00:04:40]} 14. Rad1 {[%clk 00:42:07]} {[%emt 00:03:34]} Rad8
{[%clk 00:36:23]} {[%emt 00:07:01]} 15. Nh2 {[%clk 00:39:04]} {[%emt 00:03:34]}
Bf8 {[%clk 00:27:28]} {[%emt 00:09:25]} 16. Rd3 {[%clk 00:33:50]} {[%emt
00:05:44]} Qg6 {[%clk 00:23:24]} {[%emt 00:04:33]} 17. Rg3 {[%clk 00:30:15]}
{[%emt 00:04:04]} Qh7 {[%clk 00:23:42]} {[%emt 00:00:13]} 18. Qh5 {[%clk
00:22:36]} {[%emt 00:08:05]} g5 {[%clk 00:19:49]} {[%emt 00:04:26]} 19. Ng4
{[%clk 00:18:50]} {[%emt 00:04:16]} Re7 {[%clk 00:15:40]} {[%emt 00:04:39]} 20.
f4 {[%clk 00:16:11]} {[%emt 00:03:09]} Qg7 {[%clk 00:10:14]} {[%emt 00:05:56]}
21. fxe5 {[%clk 00:14:37]} {[%emt 00:02:05]} dxe5 {[%clk 00:10:18]} {[%emt
00:00:25]} 22. Rgf3 {[%clk 00:14:31]} {[%emt 00:00:35]} 1-0

[Event "Swedish Chess Championship 2019: Minior-SM"]
[Site "Stiga Sports Arena, Arenatorget 1, Eskilstuna, Sweden, Sweden"]
[Date "2019.07.12"]
[Round "6.2"]
[White "Enholm, Herman"]
[Black "Seo, Jung Hyun"]
[Result "0-1"]
[TimeControl "90 minutes for 40 moves + 30 minutes for the rest of the game + 30 seconds per move from move one"]
[WhiteFideId "1744500"]
[BlackFideId "1735667"]
[WhiteElo "1695"]
[BlackElo "1575"]

1. d4 {[%clk 01:30:56]} {[%emt 00:00:02]} e6 {[%clk 01:30:56]} {[%emt
00:00:05]} 2. c4 {[%clk 01:30:54]} {[%emt 00:00:32]} f5 {[%clk 01:31:23]}
{[%emt 00:00:04]} 3. Nf3 {[%clk 01:30:32]} {[%emt 00:00:50]} Nf6 {[%clk
01:31:50]} {[%emt 00:00:03]} 4. Nc3 {[%clk 01:30:05]} {[%emt 00:00:57]} Be7
{[%clk 01:31:34]} {[%emt 00:00:47]} 5. Bf4 {[%clk 01:29:11]} {[%emt 00:01:24]}
O-O {[%clk 01:31:54]} {[%emt 00:00:10]} 6. e3 {[%clk 01:28:31]} {[%emt
00:01:09]} d6 {[%clk 01:32:18]} {[%emt 00:00:06]} 7. Bd3 {[%clk 01:27:37]}
{[%emt 00:01:24]} Qe8 {[%clk 01:32:28]} {[%emt 00:00:20]} 8. h3 {[%clk
01:24:30]} {[%emt 00:03:36]} Nc6 {[%clk 01:26:41]} {[%emt 00:06:19]} 9. O-O
{[%clk 01:23:06]} {[%emt 00:01:53]} Bd8 {[%clk 01:26:18]} {[%emt 00:00:55]} 10.
Bc2 {[%clk 01:13:07]} {[%emt 00:10:27]} e5 {[%clk 01:19:11]} {[%emt 00:07:38]}
11. dxe5 {[%clk 01:11:44]} {[%emt 00:01:53]} dxe5 {[%clk 01:15:29]} {[%emt
00:04:13]} 12. Bh2 {[%clk 01:10:01]} {[%emt 00:02:10]} e4 {[%clk 01:14:14]}
{[%emt 00:01:48]} 13. Nd4 {[%clk 01:08:36]} {[%emt 00:01:55]} Ne5 {[%clk
01:13:16]} {[%emt 00:01:28]} 14. Nd5 {[%clk 00:58:16]} {[%emt 00:10:49]} c6
{[%clk 01:08:18]} {[%emt 00:05:29]} 15. Nf4 {[%clk 00:51:25]} {[%emt 00:07:20]}
g5 {[%clk 01:02:39]} {[%emt 00:06:10]} 16. Nfe2 {[%clk 00:49:24]} {[%emt
00:02:30]} g4 {[%clk 00:59:10]} {[%emt 00:03:59]} 17. Bxe5 {[%clk 00:36:11]}
{[%emt 00:13:43]} Qxe5 {[%clk 00:59:33]} {[%emt 00:00:07]} 18. h4 {[%clk
00:32:43]} {[%emt 00:03:56]} g3 {[%clk 00:48:30]} {[%emt 00:11:36]} 19. Nxg3
{[%clk 00:26:16]} {[%emt 00:06:57]} Ng4 {[%emt 00:04:19]} 20. f4 {[%clk
00:22:17]} {[%emt 00:02:13]} exf3 {[%clk 00:46:22]} {[%emt 00:01:05]} 21. Qxf3
{[%clk 00:20:01]} {[%emt 00:02:46]} Bxh4 {[%clk 00:45:24]} {[%emt 00:01:28]} 22.
Nde2 {[%clk 00:16:44]} {[%emt 00:03:47]} Qxe3+ {[%clk 00:36:46]} {[%emt
00:09:08]} 23. Kh1 {[%clk 00:14:09]} {[%emt 00:03:05]} Qh6 {[%clk 00:31:38]}
{[%emt 00:05:37]} 24. Kg1 {[%clk 00:01:54]} {[%emt 00:12:45]} Bg5 {[%clk
00:30:23]} {[%emt 00:01:47]} 25. Rfd1 {[%clk 00:02:05]} {[%emt 00:00:19]} Be3+
{[%clk 00:30:38]} {[%emt 00:00:15]} 26. Kf1 {[%clk 00:02:19]} {[%emt 00:00:15]}
Nh2+ {[%clk 00:31:07]} {[%emt 00:00:02]} 0-1

[Event "Swedish Chess Championship 2019: Minior-SM"]
[Site "Stiga Sports Arena, Arenatorget 1, Eskilstuna, Sweden, Sweden"]
[Date "2019.07.12"]
[Round "6.3"]
[White "Gerdes, Sebastian"]
[Black "Morell, Ludvig"]
[Result "0-1"]
[TimeControl "90 minutes for 40 moves + 30 minutes for the rest of the game + 30 seconds per move from move one"]
[WhiteFideId "1745697"]
[BlackFideId "1736779"]
[WhiteElo "1529"]
[BlackElo "1744"]

1. c4 {[%clk 01:30:53]} {[%emt 00:00:07]} e5 {[%clk 01:30:52]} {[%emt
00:00:08]} 2. g3 {[%clk 01:31:12]} {[%emt 00:00:11]} Nf6 {[%clk 01:31:16]}
{[%emt 00:00:05]} 3. Bg2 {[%clk 01:31:38]} {[%emt 00:00:04]} h6 {[%clk
01:31:13]} {[%emt 00:00:33]} 4. Nc3 {[%clk 01:31:44]} {[%emt 00:00:25]} Bb4
{[%clk 01:31:27]} {[%emt 00:00:15]} 5. e3 {[%clk 01:31:51]} {[%emt 00:00:23]}
Bxc3 {[%clk 01:31:48]} {[%emt 00:00:07]} 6. bxc3 {[%clk 01:32:00]} {[%emt
00:00:22]} d6 {[%clk 01:31:43]} {[%emt 00:00:35]} 7. d4 {[%clk 01:32:08]}
{[%emt 00:00:23]} O-O {[%clk 01:30:26]} {[%emt 00:01:47]} 8. Ne2 {[%clk
01:30:21]} {[%emt 00:02:18]} Re8 {[%clk 01:28:16]} {[%emt 00:02:38]} 9. O-O
{[%clk 01:26:59]} {[%emt 00:03:53]} Nc6 {[%clk 01:25:04]} {[%emt 00:03:42]} 10.
Rb1 {[%clk 01:21:35]} {[%emt 00:05:54]} e4 {[%clk 01:19:04]} {[%emt 00:06:29]}
11. Ba3 {[%clk 01:09:13]} {[%emt 00:12:53]} Rb8 {[%clk 01:14:49]} {[%emt
00:04:45]} 12. Nf4 {[%clk 00:58:47]} {[%emt 00:10:56]} Bf5 {[%clk 01:06:37]}
{[%emt 00:08:42]} 13. Nd5 {[%clk 00:50:13]} {[%emt 00:09:05]} Nxd5 {[%clk
00:58:41]} {[%emt 00:08:26]} 14. cxd5 {[%clk 00:50:22]} {[%emt 00:00:21]} Ne7
{[%clk 00:58:59]} {[%emt 00:00:11]} 15. c4 {[%clk 00:50:26]} {[%emt 00:00:28]}
Qd7 {[%clk 00:54:18]} {[%emt 00:05:10]} 16. Re1 {[%clk 00:48:49]} {[%emt
00:02:07]} b5 {[%clk 00:44:41]} {[%emt 00:10:07]} 17. Qc2 {[%clk 00:45:06]}
{[%emt 00:04:13]} bxc4 {[%clk 00:35:59]} {[%emt 00:09:12]} 18. Qxc4 {[%clk
00:43:38]} {[%emt 00:01:59]} Rb6 {[%clk 00:34:53]} {[%emt 00:01:36]} 19. Rxb6
{[%clk 00:40:04]} {[%emt 00:04:04]} cxb6 {[%clk 00:32:36]} {[%emt 00:02:47]} 20.
Qb4 {[%clk 00:32:11]} {[%emt 00:08:22]} Rd8 {[%clk 00:27:54]} {[%emt 00:05:11]}
21. Qb3 {[%clk 00:31:36]} {[%emt 00:01:06]} Rc8 {[%clk 00:27:53]} {[%emt
00:00:31]} 22. f3 {[%clk 00:29:10]} {[%emt 00:02:56]} exf3 {[%clk 00:17:21]}
{[%emt 00:11:02]} 23. Bxf3 {[%clk 00:29:35]} {[%emt 00:00:05]} Bh3 {[%clk
00:13:02]} {[%emt 00:04:47]} 24. e4 {[%clk 00:28:49]} {[%emt 00:01:18]} Ng6
{[%clk 00:10:42]} {[%emt 00:02:50]} 25. e5 {[%clk 00:20:38]} {[%emt 00:08:41]}
dxe5 {[%clk 00:09:48]} {[%emt 00:01:23]} 26. dxe5 {[%clk 00:21:04]} {[%emt
00:00:05]} Re8 {[%clk 00:09:53]} {[%emt 00:00:25]} 27. Bb2 {[%clk 00:21:19]}
{[%emt 00:00:15]} Qf5 {[%clk 00:09:30]} {[%emt 00:00:52]} 28. e6 {[%clk
00:21:08]} {[%emt 00:00:43]} Kh8 {[%clk 00:09:04]} {[%emt 00:00:55]} 29. Qc3
{[%clk 00:17:43]} {[%emt 00:03:55]} f6 {[%clk 00:07:28]} {[%emt 00:02:06]} 30.
Be4 {[%clk 00:16:35]} {[%emt 00:01:39]} Qg4 {[%clk 00:06:23]} {[%emt 00:01:31]}
31. Qc6 {[%clk 00:16:34]} {[%emt 00:00:35]} Rg8 {[%clk 00:06:01]} {[%emt
00:00:51]} 32. Bxg6 {[%clk 00:16:18]} {[%emt 00:00:47]} Qxg6 {[%clk 00:06:20]}
{[%emt 00:00:09]} 33. e7 {[%clk 00:16:46]} {[%emt 00:00:03]} Qe8 {[%clk
00:04:55]} {[%emt 00:01:54]} 34. Qc7 {[%clk 00:15:36]} {[%emt 00:01:41]} Qb5
{[%clk 00:03:34]} {[%emt 00:01:51]} 35. Qc2 {[%clk 00:13:37]} {[%emt 00:02:30]}
Bd7 {[%clk 00:01:09]} {[%emt 00:02:55]} 36. Qd2 {[%clk 00:13:53]} {[%emt
00:00:14]} Re8 {[%clk 00:00:47]} {[%emt 00:00:52]} 37. Re4 {[%clk 00:11:50]}
{[%emt 00:02:34]} Qc5+ {[%clk 00:00:55]} {[%emt 00:00:22]} 38. Kh1 {[%clk
00:12:03]} {[%emt 00:00:15]} Qd6 {[%clk 00:00:31]} {[%emt 00:00:55]} 39. Qe3
{[%clk 00:11:04]} {[%emt 00:01:28]} Bf5 {[%clk 00:00:33]} {[%emt 00:00:29]} 40.
Rd4 {[%clk 00:06:31]} {[%emt 00:05:02]} Rxe7 {[%clk 00:00:40]} {[%emt
00:00:23]} 41. Qf3 {[%clk 00:05:27]} {[%emt 00:01:34]} Qd7 {[%clk 00:20:38]}
{[%emt 00:10:32]} 42. Kg2 {[%clk 00:34:05]} {[%emt 00:01:52]} Bh3+ {[%clk
00:19:13]} {[%emt 00:01:54]} 43. Kf2 {[%clk 00:34:28]} {[%emt 00:00:08]} Qb5
{[%clk 00:18:59]} {[%emt 00:00:44]} 44. Rd2 {[%clk 00:34:36]} {[%emt 00:00:22]}
Qf1# {[%clk 00:19:16]} {[%emt 00:00:12]} 0-1